[Event "Serbian-ch Semifinal Women 2024"]
[Site "Paracin"]
[Date "2024.02.06"]
[Round "3.2"]
[White "Bukhteeva, Viktoria"]
[Black "Grozdanovic, Anastasia"]
[Result "1/2-1/2"]
[ECO "D02"]
[WhiteElo "2070"]
[BlackElo "2051"]
[Annotator "TA"]
[PlyCount "126"]
[EventDate "2024.02.04"]
[EventType "swiss"]
[EventCountry "SRB"]
[SourceTitle "playchess.com"]
[Source "ChessBase"]
[SourceQuality "1"]
[TimeControl "40/5400+30:1800+30"]

{[%evp 24,126,13,8,14,0,0,6,12,0,-9,0,19,0,16,4,40,36,41,0,43,44,42,-16,0,-58,-58,-50,-13,-27,-29,-39,-8,-10,0,0,0,-199,-194,-185,-85,-80,-75,-87,-77,-79,-94,-80,-89,-80,-89,-79,-87,-97,-92,-135,-120,-123,-115,-109,0,0,0,0,0,0,0,0,0,0,0,-62,0,0,0,0,0,0,8,10,165,-23,-24,-58,-58,-59,-59,-59,-59,-58,0,0,0,0,0,0,0,0,0,0,0,0,0,0,0]} 1. d4 {[%emt 0:00:04]} Nf6 {[%emt 0:00:10]} 2. Bf4 {[%emt 0:00:32]} d5 {[%emt 0:00:11]} 3. e3 {[%emt 0:00:22]} c5 {[%emt 0:00:51]} 4. Nf3 {[%emt 0:00:16]} Nc6 {[%emt 0:00:06]} 5. Nbd2 {[%emt 0:00:22]} cxd4 {[%emt 0:01:38]} 6. exd4 {[%emt 0:00:15] D02: 1 d4 d5 2 Nf3 sidelines, including 2...Nf6 3 g3 and 2...Nf6 3 Bf4.} a6 {[%emt 0:00:44]} 7. Bd3 {[%emt 0:05:33]} Bg4 {[%emt 0:01:52]} 8. c3 {[%emt 0:01:18]} e6 {[%emt 0:01:31]} 9. Qb3 {[%emt 0:04:54]} Bd6 {[%emt 0:06:25]} 10. Bg3 {[%emt 0:06:36]} O-O {[%emt 0:03:30]} 11. O-O {[%emt 0:00:14]} b5 {[%emt 0:04:58]} 12. a3 $146 {[%emt 0:05:45]} ({Predecessor:} 12. Rfe1 Bxg3 13. hxg3 Qb6 14. Ne5 Nxe5 15. Rxe5 Bh5 16. Qc2 Bg6 17. Bxg6 hxg6 18. Nf3 {0-1 Ptacek,L (2092)-Cerny,J (2063) CZE-chT2D 1314 2013 (8.5)}) 12... Na5 {[%emt 0:05:28]} 13. Qc2 {[%emt 0:00:07]} Nc4 {[%emt 0:01:41]} 14. Ne5 {[%emt 0:00:36]} Bh5 {[%emt 0:02:40]} 15. Rfe1 {[%emt 0:01:57]} Rc8 {[%emt 0:05:01]} 16. Ndf3 {[%emt 0:07:31]} Bxf3 {[%emt 0:04:20]} 17. Nxf3 {[%emt 0:00:09]} a5 {[%emt 0:01:22]} 18. Qe2 {[%emt 0:02:46]} h6 {[%emt 0:12:20]} 19. Ne5 {[%emt 0:11:35]} a4 {[%emt 0:11:17]} 20. Bh4 {[%emt 0:06:03]} Be7 {[%emt 0:02:21]} 21. Bg3 {[%emt 0:04:25]} Nd7 {[%emt 0:03:07]} 22. f4 {[%emt 0:01:50]} Ndxe5 {[%emt 0:05:51]} 23. dxe5 {[%emt 0:03:26]} (23. fxe5 $14 Bh4 24. Bxh4 Qxh4 25. Rf1) 23... Bh4 {[%emt 0:07:56]} 24. Rab1 {[%emt 0:04:44]} (24. Rad1 $11) 24... Bxg3 $15 {[%emt 0:01:59]} 25. hxg3 {[%emt 0:00:05]} Qe7 {[%emt 0:03:28]} 26. Kh2 {[%emt 0:02:54]} Rfd8 {[%emt 0:02:26]} 27. Rbd1 {[%emt 0:04:44]} Rc7 {[%emt 0:01:53]} 28. Bb1 {[%emt 0:00:45]} Rcd7 {[%emt 0:02:47]} 29. Rd4 {[%emt 0:00:18]} g6 {[%emt 0:01:21]} 30. g4 $2 {[%emt 0:05:48]} (30. Kg1 $11) 30... Nxb2 $1 $19 {[%emt 0:01:17]} 31. f5 {[%emt 0:00:32] [#]} Qg5 {[%emt 0:01:51]} (31... Qxa3 32. Rb4 $16) (31... Nc4 $1 $19 {and Black stays clearly on top.} 32. fxg6 Qg5 (32... Qxa3 33. g5 $15) (32... Nxa3 33. gxf7+ Qxf7 34. Rf1 $15)) 32. fxe6 {[%emt 0:05:10]} fxe6 {[%emt 0:00:16]} 33. Rf1 {[%emt 0:00:57]} (33. Bxg6 $2 Nc4 34. Bh5 Rf8 $17 (34... Nxa3 35. Rf1 $17)) 33... Nc4 {[%emt 0:02:02]} 34. Rf6 {[%emt 0:00:08]} Nxe5 {[%emt 0:00:58]} 35. Rxe6 {[%emt 0:00:12]} Re7 {[%emt 0:00:03]} 36. Rxe7 {[%emt 0:00:54]} Qxe7 {[%emt 0:00:06]} 37. Kh3 {[%emt 0:05:09]} Nc6 {[%emt 0:01:37]} 38. Qxe7 {[%emt 0:03:32]} Nxe7 {[%emt 0:00:03]} 39. Rd3 {[%emt 0:02:21]} Kg7 {[%emt 0:01:05]} 40. Re3 {[%emt 0:00:20]} Kf6 {[%emt 0:01:07]} 41. Bd3 {[%emt 0:31:30]} d4 {[%emt 0:10:44]} (41... Rb8 $17 {Strongly threatening ...g5.} 42. Rf3+ Ke5) 42. Rf3+ $11 {[%emt 0:00:00]} Kg5 {[%emt 0:00:48]} 43. Bxb5 {[%emt 0:00:00]} Nd5 {[%emt 0:00:29]} 44. cxd4 {[%emt 0:00:00]} Nf4+ {[%emt 0:01:38]} 45. Kg3 {[%emt 0:00:00]} Rxd4 {[%emt 0:00:41]} 46. Re3 {[%emt 0:00:00]} Nd5 {[%emt 0:02:57]} 47. Re5+ {[%emt 0:00:00]} Kf6 {[%emt 0:00:08]} 48. Re1 $1 {[%emt 0:00:00]} Nc3 {[%emt 0:02:28]} 49. Bc6 {[%emt 0:00:00]} Rd3+ {[%emt 0:03:39]} 50. Kh2 {[%emt 0:00:00]} Kg5 {[%emt 0:03:43]} 51. Re6 {[%emt 0:00:00]} Nd1 $2 {[%emt 0:03:25] [#]} (51... Rd8 $11 {and Black stays safe.}) 52. Bxa4 $2 {[%emt 0:00:35]} (52. Be4 $1 $18 Rd8 (52... Rxa3 $2 53. g3 $18) 53. Rxg6+ (53. Bxg6 Kxg4 54. Bc2 Rd2 $16) 53... Kf4 54. Bf3) 52... Ne3 $11 {[%emt 0:01:58]} 53. Kg1 {[%emt 0:01:46]} Rxa3 {[%emt 0:01:11]} ({Much worse is} 53... Kxg4 $6 54. Rxg6+ Kf4 55. g3+ (55. Rxh6 Rxa3 56. Rh4+ Kg5 $11) 55... Ke4 56. Bc6+ (56. Rxh6 Rxa3 57. Bc6+ Kf5 $11) 56... Kf5 57. Rg8 $11) 54. Be8 {[%emt 0:01:43]} Nxg4 {[%emt 0:00:57]} ({Don't play} 54... Kxg4 55. Rxg6+ Kf5 56. Rc6 $11) 55. Rxg6+ {[%emt 0:00:59]} Kf5 $1 {[%emt 0:02:12]} 56. Kf1 {[%emt 0:00:22]} Re3 {[%emt 0:00:24]} (56... Ra1+ $1 $15 57. Ke2 Ra2+ 58. Kf1 Nf6) 57. Rg8 $11 {[%emt 0:01:12]} Nf6 {[%emt 0:00:29]} 58. Bg6+ {[%emt 0:01:21]} Kg5 {[%emt 0:00:37]} 59. Rg7 {[%emt 0:00:05]} Ng4 {[%emt 0:00:46]} 60. Bc2+ {[%emt 0:00:36]} Kf4 {[%emt 0:00:16]} 61. Bd1 {[%emt 0:00:58]} Ne5 {[%emt 0:00:28]} 62. Rh7 {[%emt 0:00:34]} Nd3 {[%emt 0:00:28]} 63. Be2 {[%emt 0:00:43]} (63. Rxh6 $2 Re1#) 63... Kg5 {[%emt 0:00:41]} 1/2-1/2

[Event "Serbian-ch Semifinal Women 2024"]
[Site "Paracin"]
[Date "2024.02.06"]
[Round "3.3"]
[White "Vujovic, Vera"]
[Black "Srdanovic, Jovana"]
[Result "1-0"]
[ECO "C42"]
[WhiteElo "2123"]
[BlackElo "2121"]
[Annotator "RC"]
[PlyCount "117"]
[EventDate "2024.02.04"]
[EventType "swiss"]
[EventCountry "SRB"]
[SourceTitle "playchess.com"]
[Source "ChessBase"]
[SourceQuality "1"]
[TimeControl "40/5400+30:1800+30"]

1. e4 {[%emt 0:00:01]} e5 {[%emt 0:06:27]} 2. Nf3 {[%emt 0:00:11]} Nf6 {[%emt 0:00:09]} 3. Nxe5 {[%emt 1:31:48]} d6 {[%emt 0:00:08]} 4. Nf3 {[%emt 0:00:00]} Nxe4 {[%emt 0:00:06]} 5. d4 {[%emt 0:00:00]} d5 {[%emt 0:00:09]} 6. Bd3 {[%emt 0:00:00]} Bd6 {[%emt 0:00:48]} 7. O-O {[%emt 0:00:00]} O-O {[%emt 0:00:32]} 8. c4 {[%emt 0:00:00]} c6 {[%emt 0:00:23]} 9. Nc3 {[%emt 0:00:00]} Nxc3 {[%emt 0:04:52]} 10. bxc3 {[%emt 0:00:00]} dxc4 {[%emt 0:00:18]} 11. Bxc4 {[%emt 0:00:00]} Bg4 {[%emt 0:00:14]} 12. h3 {[%emt 0:00:00]} Bh5 {[%emt 0:00:26]} 13. Be2 {[%emt 0:00:00]} Nd7 {[%emt 0:03:59]} 14. Re1 {[%emt 0:00:00]} Re8 {[%emt 0:01:14]} 15. Bg5 {[%emt 0:00:00]} Qa5 {[%emt 0:02:01]} 16. Qd2 {[%emt 0:00:00]} h6 {[%emt 0:01:56]} 17. Bh4 {[%emt 0:00:00]} Nb6 {[%emt 0:03:08]} 18. Rab1 {[%emt 0:00:00]} Rab8 {[%emt 0:01:37]} 19. Ne5 {[%emt 0:00:00]} Bxe2 {[%emt 0:02:17]} 20. Rxe2 {[%emt 0:00:00]} Bxe5 {[%emt 0:12:00]} 21. Rxe5 {[%emt 0:00:00]} Rxe5 {[%emt 0:03:39]} 22. dxe5 {[%emt 0:00:00]} Nc4 {[%emt 0:06:50]} 23. Qd7 {[%emt 0:00:00]} Qxe5 {[%emt 0:17:51]} 24. Rxb7 {[%emt 0:00:00]} Rxb7 {[%emt 0:00:11]} 25. Qxb7 {[%emt 0:00:00]} g5 {[%emt 0:07:23]} 26. Bg3 {[%emt 0:03:19]} Qe1+ {[%emt 0:00:19]} 27. Kh2 {[%emt 0:00:13]} Nd2 {[%emt 0:00:15]} 28. Qb8+ {[%emt 0:00:45]} Kh7 {[%emt 0:00:23]} 29. Be5 {[%emt 0:01:08]} Nf1+ {[%emt 0:11:19]} 30. Kg1 {[%emt 0:00:29]} Ne3+ {[%emt 0:00:11]} 31. Kh2 {[%emt 0:00:15]} Qxf2 {[%emt 0:00:44]} 32. Qb1+ {[%emt 0:01:19]} Qc2 {[%emt 0:01:59]} 33. Qxc2+ {[%emt 0:01:48]} Nxc2 {[%emt 0:00:05]} 34. g4 {[%emt 0:00:44]} Kg6 {[%emt 0:00:52]} 35. Kg3 {[%emt 0:02:15]} f5 {[%emt 0:00:24]} 36. Kf3 {[%emt 0:01:16]} Ne1+ {[%emt 0:02:14]} 37. Ke2 {[%emt 0:00:27]} Ng2 {[%emt 0:00:05]} 38. Kf3 {[%emt 0:00:25]} Nh4+ {[%emt 0:00:06]} 39. Ke3 {[%emt 0:02:14]} fxg4 {[%emt 0:00:29]} 40. hxg4 {[%emt 0:00:09]} h5 {[%emt 0:00:11]} 41. gxh5+ {[%emt 0:30:18]} Kxh5 {[%emt 0:30:07]} 42. Bb8 {[%emt 0:00:08]} a6 {[%emt 0:00:00]} 43. Kd4 {[%emt 0:00:00]} Nf5+ {[%emt 0:00:00]} 44. Kc5 {[%emt 0:00:00]} Ne7 {[%emt 0:00:00]} 45. Kd6 {[%emt 0:00:00]} Nd5 {[%emt 0:00:00]} 46. c4 {[%emt 0:00:00]} Nb4 {[%emt 0:00:00]} 47. a3 {[%emt 0:00:00]} Nc2 {[%emt 0:00:00]} 48. a4 {[%emt 0:00:00]} Nb4 {[%emt 0:00:00]} 49. a5 {[%emt 0:00:00]} Kg6 {[%emt 0:05:59]} 50. Kc5 {[%emt 0:00:00]} Nd3+ {[%emt 0:00:08]} 51. Kxc6 {[%emt 0:00:00]} Nb2 {[%emt 0:00:09]} 52. c5 {[%emt 0:00:00]} Nc4 {[%emt 0:00:05]} 53. Bc7 {[%emt 0:00:00]} Kf5 {[%emt 0:07:22]} 54. Kd7 {[%emt 0:00:00]} Ke4 {[%emt 0:02:18]} 55. Ke6 {[%emt 0:00:00]} Kd4 {[%emt 0:00:24]} 56. Bb6 {[%emt 0:00:00]} g4 {[%emt 0:02:30]} 57. c6+ {[%emt 0:00:00]} Nxb6 {[%emt 0:00:05]} 58. axb6 {[%emt 0:00:00]} g3 {[%emt 0:00:05]} 59. b7 {[%emt 0:00:00]} 1-0

[Event "Serbian-ch Semifinal Women 2024"]
[Site "Paracin"]
[Date "2024.02.07"]
[Round "4.1"]
[White "Srdanovic, Jovana"]
[Black "Stankovic, Andrea"]
[Result "1-0"]
[ECO "A50"]
[WhiteElo "2121"]
[BlackElo "1714"]
[Annotator "NA RC"]
[PlyCount "59"]
[EventDate "2024.02.04"]
[EventType "swiss"]
[EventCountry "SRB"]
[SourceTitle "playchess.com"]
[Source "ChessBase"]
[SourceQuality "1"]
[TimeControl "40/5400+30:1800+30"]

1. d4 {[%emt 0:02:20]} e6 {[%emt 0:00:06]} 2. c4 {[%emt 0:00:04]} Nf6 {[%emt 0:00:04]} 3. Bf4 {[%emt 0:00:10]} Bb4+ {[%emt 0:00:11]} 4. Nd2 {[%emt 0:00:06]} c5 {[%emt 0:00:31]} 5. dxc5 {[%emt 0:00:27]} Bxc5 {[%emt 0:03:00]} 6. e3 {[%emt 0:00:23]} Nc6 {[%emt 0:01:51]} 7. Ngf3 {[%emt 0:01:05]} h6 {[%emt 0:02:33]} 8. a3 {[%emt 0:02:15]} a5 {[%emt 0:00:28]} 9. h3 {[%emt 0:01:38]} O-O {[%emt 0:03:10]} 10. Be2 {[%emt 0:01:43]} d5 {[%emt 0:01:27]} 11. O-O {[%emt 0:00:56]} Re8 {[%emt 0:04:25]} 12. Bh2 {[%emt 0:02:31]} Bd6 {[%emt 0:02:10]} 13. Bxd6 {[%emt 0:00:54]} Qxd6 {[%emt 0:00:06]} 14. cxd5 {[%emt 0:02:09]} exd5 {[%emt 0:01:56]} 15. Rc1 {[%emt 0:01:04]} Bf5 {[%emt 0:01:31]} 16. Bb5 {[%emt 0:04:56]} Nd7 {[%emt 0:04:28]} 17. Bxc6 {[%emt 0:02:33]} bxc6 {[%emt 0:00:34]} 18. Nd4 {[%emt 0:00:09]} Be4 {[%emt 0:07:02]} 19. Rxc6 {[%emt 0:00:58]} Qe5 {[%emt 0:00:54]} 20. Nxe4 {[%emt 0:00:45]} dxe4 {[%emt 0:00:48]} 21. Qg4 {[%emt 0:04:39]} Nf6 {[%emt 0:03:30]} 22. Qe2 {[%emt 0:02:53]} Qg5 {[%emt 0:04:16]} 23. Rfc1 {[%emt 0:00:40]} Nd7 {[%emt 0:01:02]} 24. Rc7 {[%emt 0:05:07]} Ne5 {[%emt 0:00:50]} 25. R1c5 {[%emt 0:04:09]} a4 {[%emt 0:09:51]} 26. Qc2 {[%emt 0:03:39]} Qf6 {[%emt 0:02:55]} 27. Rb5 {[%emt 0:02:35]} Rab8 {[%emt 0:02:21]} 28. Rxb8 {[%emt 0:00:27]} Rxb8 {[%emt 0:00:26]} 29. Qxe4 {[%emt 0:01:01]} g6 {[%emt 0:00:35]} 30. f4 {[%emt 0:01:48]} 1-0

[Event "Serbian-ch Semifinal Women 2024"]
[Site "Paracin"]
[Date "2024.02.07"]
[Round "4.2"]
[White "Grozdanovic, Anastasia"]
[Black "Vujovic, Vera"]
[Result "0-1"]
[ECO "D27"]
[WhiteElo "2051"]
[BlackElo "2123"]
[Annotator "RC"]
[PlyCount "128"]
[EventDate "2024.02.04"]
[EventType "swiss"]
[EventCountry "SRB"]
[SourceTitle "playchess.com"]
[Source "ChessBase"]
[SourceQuality "1"]
[TimeControl "40/5400+30:1800+30"]

1. d4 {[%emt 0:00:04]} d5 {[%emt 0:00:17]} 2. c4 {[%emt 0:00:19]} dxc4 {[%emt 0:00:09]} 3. Nf3 {[%emt 0:00:10]} Nf6 {[%emt 0:00:09]} 4. e3 {[%emt 0:00:29]} e6 {[%emt 0:00:14]} 5. Bxc4 {[%emt 0:00:05]} c5 {[%emt 0:00:07]} 6. O-O {[%emt 0:00:08]} a6 {[%emt 0:00:10]} 7. a4 {[%emt 0:00:05]} Nc6 {[%emt 1:32:54]} 8. Qe2 {[%emt 0:00:20]} cxd4 {[%emt 0:00:00]} 9. Rd1 {[%emt 0:00:09]} Be7 {[%emt 0:00:00]} 10. exd4 {[%emt 0:00:05]} O-O {[%emt 0:00:00]} 11. Nc3 {[%emt 0:00:14]} Nb4 {[%emt 0:00:00]} 12. Ne5 {[%emt 0:00:49]} Nfd5 {[%emt 0:00:00]} 13. Qe4 {[%emt 0:11:06]} Ra7 {[%emt 0:00:00]} 14. Bb3 {[%emt 0:07:48]} b6 {[%emt 0:00:00]} 15. Nxd5 {[%emt 0:07:01]} exd5 {[%emt 0:00:00]} 16. Qf3 {[%emt 0:02:21]} Be6 {[%emt 0:00:00]} 17. Bd2 {[%emt 0:07:45]} f6 {[%emt 0:00:00]} 18. Ng4 {[%emt 0:08:07]} Nc6 {[%emt 0:00:00]} 19. Bc3 {[%emt 0:02:59]} Qd7 {[%emt 0:00:00]} 20. Ne3 {[%emt 0:00:45]} Rd8 {[%emt 0:00:00]} 21. Bc2 {[%emt 0:06:12]} Bf8 {[%emt 0:00:00]} 22. Qh5 {[%emt 0:03:25]} g6 {[%emt 0:00:00]} 23. Qf3 {[%emt 0:00:03]} Bg7 {[%emt 0:00:00]} 24. h3 {[%emt 0:07:26]} b5 {[%emt 0:00:00]} 25. b4 {[%emt 0:17:45]} Rc7 {[%emt 0:00:00]} 26. axb5 {[%emt 0:01:18]} axb5 {[%emt 0:00:00]} 27. Bd3 {[%emt 0:01:40]} Qe7 {[%emt 0:00:00]} 28. Bxb5 {[%emt 0:02:21]} Nxb4 {[%emt 0:00:43]} 29. Bxb4 {[%emt 0:01:20]} Qxb4 {[%emt 0:00:11]} 30. Rab1 {[%emt 0:00:23]} Qd6 {[%emt 0:01:00]} 31. Ba4 {[%emt 0:02:02]} f5 {[%emt 0:02:14]} 32. Bb3 {[%emt 0:03:51]} f4 {[%emt 0:04:12]} 33. Ng4 {[%emt 0:02:18]} h5 {[%emt 0:02:55]} 34. Nh2 {[%emt 0:01:52]} Rdc8 {[%emt 0:00:41]} 35. Qe2 {[%emt 0:00:53]} Bf5 {[%emt 0:00:33]} 36. Ra1 {[%emt 0:00:32]} Rb8 {[%emt 0:00:58]} 37. Ra6 {[%emt 0:00:33]} Qd8 {[%emt 0:00:33]} 38. Qa2 {[%emt 0:01:38]} Rxb3 {[%emt 0:00:43]} 39. Qxb3 {[%emt 0:00:02]} Bc2 {[%emt 0:00:08]} 40. Qf3 {[%emt 0:00:02]} Bxd1 {[%emt 0:00:18]} 41. Qxd1 {[%emt 0:30:04]} Qc8 {[%emt 0:31:07]} 42. Qa4 {[%emt 0:00:00]} Rc1+ {[%emt 0:00:00]} 43. Nf1 {[%emt 0:00:00]} Kh7 {[%emt 0:00:00]} 44. Rd6 {[%emt 0:00:00]} Qc3 {[%emt 0:00:00]} 45. Qa6 {[%emt 0:00:00]} Qc4 {[%emt 0:00:00]} 46. Qxc4 {[%emt 0:00:00]} dxc4 {[%emt 0:00:00]} 47. d5 {[%emt 0:00:24]} Rd1 {[%emt 0:00:00]} 48. Rc6 {[%emt 0:02:59]} c3 {[%emt 0:00:00]} 49. g3 {[%emt 0:01:11]} f3 {[%emt 0:00:00]} 50. d6 {[%emt 0:01:00]} Kh6 {[%emt 0:00:00]} 51. h4 {[%emt 0:01:08]} Kh7 {[%emt 0:00:00]} 52. Rc7 {[%emt 0:01:07]} Rxd6 {[%emt 0:06:14]} 53. Ne3 {[%emt 0:02:42]} Rd8 {[%emt 0:00:00]} 54. Rc6 {[%emt 0:00:00]} Rd7 {[%emt 0:00:00]} 55. Rc8 {[%emt 0:00:00]} Ra7 {[%emt 0:00:00]} 56. Rc4 {[%emt 0:00:47]} Kg8 {[%emt 0:00:13]} 57. Kh2 {[%emt 0:00:28]} Rb7 {[%emt 0:01:21]} 58. Nd1 {[%emt 0:00:30]} Rb1 {[%emt 0:00:19]} 59. Ne3 {[%emt 0:00:24]} Be5 {[%emt 0:00:25]} 60. Rc6 {[%emt 0:00:31]} Bd4 {[%emt 0:00:35]} 61. Rxg6+ {[%emt 0:00:36]} Kf7 {[%emt 0:00:12]} 62. Rg5 {[%emt 0:00:33]} Bxe3 {[%emt 0:00:21]} 63. Rf5+ {[%emt 0:00:25]} Kg6 {[%emt 0:00:16]} 64. Rxf3 {[%emt 0:00:05]} c2 {[%emt 0:00:09]} 0-1

[Event "Serbian-ch Semifinal Women 2024"]
[Site "Paracin"]
[Date "2024.02.07"]
[Round "4.3"]
[White "Jovanovic, Anja"]
[Black "Bukhteeva, Viktoria"]
[Result "0-1"]
[ECO "B22"]
[WhiteElo "1910"]
[BlackElo "2070"]
[Annotator "NA RC"]
[PlyCount "100"]
[EventDate "2024.02.04"]
[EventType "swiss"]
[EventCountry "SRB"]
[SourceTitle "playchess.com"]
[Source "ChessBase"]
[SourceQuality "1"]
[TimeControl "40/5400+30:1800+30"]

1. e4 {[%emt 0:00:03]} c5 {[%emt 0:00:06]} 2. Nf3 {[%emt 0:00:06]} Nf6 {[%emt 0:00:04]} 3. e5 {[%emt 0:00:21]} Nd5 {[%emt 0:00:07]} 4. d4 {[%emt 0:00:31]} cxd4 {[%emt 0:03:05]} 5. c3 {[%emt 0:00:22]} Nc6 {[%emt 0:00:28]} 6. cxd4 {[%emt 0:00:21]} d6 {[%emt 0:00:45]} 7. Bc4 {[%emt 0:02:08]} dxe5 {[%emt 0:00:24]} 8. dxe5 {[%emt 0:01:44]} Ndb4 {[%emt 0:00:05]} 9. Qb3 {[%emt 0:11:15]} e6 {[%emt 0:01:19]} 10. O-O {[%emt 0:05:53]} Na5 {[%emt 0:00:27]} 11. Bb5+ {[%emt 0:06:01]} Bd7 {[%emt 0:00:18]} 12. Qa4 {[%emt 0:01:25]} Bxb5 {[%emt 0:00:07]} 13. Qxb5+ {[%emt 0:00:06]} Nac6 {[%emt 0:00:03]} 14. Nc3 {[%emt 0:08:24]} a6 {[%emt 0:00:04]} 15. Qe2 {[%emt 0:01:12]} Qd3 {[%emt 0:02:37]} 16. Rd1 {[%emt 0:03:52]} Qxe2 {[%emt 0:00:19]} 17. Nxe2 {[%emt 0:00:03]} Be7 {[%emt 0:10:17]} 18. Nc3 {[%emt 0:05:12]} Rd8 {[%emt 0:03:00]} 19. Rxd8+ {[%emt 0:09:25]} Bxd8 {[%emt 0:00:07]} 20. Ne4 {[%emt 0:09:45]} O-O {[%emt 0:19:36]} 21. Nc5 {[%emt 0:13:12]} Bc7 {[%emt 0:03:17]} 22. Bg5 {[%emt 0:06:17]} h6 {[%emt 0:01:53]} 23. Bd2 {[%emt 0:04:49]} b6 {[%emt 0:08:44]} 24. a3 {[%emt 0:04:05]} bxc5 {[%emt 0:01:01]} 25. axb4 {[%emt 0:00:05]} Nxb4 {[%emt 0:00:09]} 26. Kf1 {[%emt 0:01:00]} a5 {[%emt 0:01:32]} 27. Ke2 {[%emt 0:02:09]} Rd8 {[%emt 0:01:07]} 28. Rc1 {[%emt 0:00:35]} Rd5 {[%emt 0:00:30]} 29. Bxb4 {[%emt 0:01:09]} axb4 {[%emt 0:00:08]} 30. b3 {[%emt 0:01:32]} Bxe5 {[%emt 0:01:34]} 31. Nxe5 {[%emt 0:00:37]} Rxe5+ {[%emt 0:00:07]} 32. Kd3 {[%emt 0:00:26]} Rd5+ {[%emt 0:00:06]} 33. Ke2 {[%emt 0:00:15]} Kf8 {[%emt 0:01:17]} 34. Ra1 {[%emt 0:00:22]} Ke7 {[%emt 0:00:07]} 35. Ra7+ {[%emt 0:00:19]} Kf6 {[%emt 0:00:06]} 36. f4 {[%emt 0:01:26]} g5 {[%emt 0:02:42]} 37. fxg5+ {[%emt 0:00:40]} hxg5 {[%emt 0:01:47]} 38. Rc7 {[%emt 0:00:30]} g4 {[%emt 0:02:59]} 39. Ke3 {[%emt 0:01:10]} Rh5 {[%emt 0:08:03]} 40. Kf4 {[%emt 0:00:35]} Rxh2 {[%emt 0:00:45]} 41. Kg3 {[%emt 0:31:05]} Rh5 {[%emt 0:30:06]} 42. Kxg4 {[%emt 0:00:11]} Rd5 {[%emt 0:00:15]} 43. Kf4 {[%emt 0:00:48]} Rd3 {[%emt 0:01:35]} 44. Rxc5 {[%emt 0:00:00]} Rxb3 {[%emt 0:00:00]} 45. Rb5 {[%emt 0:00:00]} Rb2 {[%emt 0:00:00]} 46. g3 {[%emt 0:00:00]} b3 {[%emt 0:00:00]} 47. Kf3 {[%emt 0:00:00]} Rb1 {[%emt 0:00:00]} 48. Kg2 {[%emt 0:00:00]} e5 {[%emt 0:00:00]} 49. g4 {[%emt 0:00:00]} b2 {[%emt 0:00:00]} 50. Rb4 {[%emt 0:00:00]} e4 {[%emt 0:00:00]} 0-1

[Event "Serbian-ch Semifinal Women 2024"]
[Site "Paracin"]
[Date "2024.02.08"]
[Round "5.1"]
[White "Vujovic, Vera"]
[Black "Jovanovic, Anja"]
[Result "1-0"]
[ECO "C68"]
[WhiteElo "2123"]
[BlackElo "1910"]
[Annotator "TA"]
[PlyCount "75"]
[EventDate "2024.02.04"]
[EventType "swiss"]
[EventCountry "SRB"]
[SourceTitle "playchess.com"]
[Source "ChessBase"]
[SourceQuality "1"]
[TimeControl "40/5400+30:1800+30"]

{[%evp 18,75,-16,-15,11,-6,44,46,45,43,37,38,60,61,59,61,60,65,114,127,155,139,242,248,239,232,235,242,301,300,310,269,343,336,302,243,566,596,570,566,589,602,583,609,597,588,605,600,644,641,654,655,695,686,721,722,704,708,1630,1609]} 1. e4 {[%emt 0:00:03]} e5 {[%emt 0:00:12]} 2. Nf3 {[%emt 0:00:10]} Nc6 {[%emt 0:00:31]} 3. Bb5 {[%emt 0:00:20]} a6 {[%emt 0:00:13]} 4. Bxc6 {[%emt 0:00:13]} dxc6 {[%emt 0:00:28]} 5. O-O {[%emt 0:00:29]} Bg4 {[%emt 0:01:15]} 6. h3 {[%emt 0:00:19]} h5 {[%emt 0:00:36]} 7. d3 {[%emt 0:00:30]} Qf6 {[%emt 0:01:31]} 8. Be3 {[%emt 0:01:05]} Bxf3 {[%emt 0:02:21]} 9. Qxf3 {[%emt 0:00:45]} Qxf3 {[%emt 0:01:10]} 10. gxf3 {[%emt 0:00:22]} c5 {[%emt 0:04:24]} 11. Nd2 {[%emt 0:03:35]} Nf6 {[%emt 0:05:04]} ({Better is} 11... Bd6 $11) 12. f4 $14 {[%emt 0:09:02]} exf4 {[%emt 0:06:04] White is slightly better.} 13. Bxf4 {[%emt 0:00:15]} O-O-O {[%emt 0:02:10]} 14. Be3 {[%emt 0:17:12]} Be7 {[%emt 0:11:08][%cal Og7g5]} 15. f4 {[%emt 0:09:26]} Rdg8 {[%emt 0:04:55]} 16. Kf2 {[%emt 0:02:50]} Nd7 {[%emt 0:05:45]} 17. Nf3 {[%emt 0:02:27]} f6 {[%emt 0:27:50]} (17... Re8 $14) 18. Rg1 $16 {[%emt 0:03:05][%cal Bf1g1,Bg1g2,Bg2g6][%mdl 32]} g6 {[%emt 0:03:34]} 19. Rg2 {[%emt 0:01:54] White is more active.} f5 {[%emt 0:05:21]} (19... Nf8 $16 {was called for.} 20. Rag1 h4) 20. Rag1 $18 {[%emt 0:02:57]} fxe4 {[%emt 0:05:11]} 21. dxe4 {[%emt 0:00:14][%cal Bd3e4,Be4e5][%mdl 32]} Nf6 {[%emt 0:01:16]} 22. Nd2 {[%emt 0:01:56]} ({And not} 22. Rxg6 Nxe4+ 23. Ke2 Re8 $14) 22... Rd8 {[%emt 0:02:12]} 23. Rxg6 {[%emt 0:02:16]} h4 {[%emt 0:01:08]} 24. f5 {[%emt 0:05:35]} Rdf8 {[%emt 0:01:01]} 25. Bh6 {[%emt 0:01:51]} Rf7 {[%emt 0:02:04]} 26. e5 {[%emt 0:04:22]} Nd7 $2 {[%emt 0:01:13] [#]} (26... Ne8 {is a better chance.} 27. f6 Nxf6) 27. Rg8+ {[%emt 0:00:41] White is clearly winning.} Rxg8 {[%emt 0:00:19]} 28. Rxg8+ {[%emt 0:00:05]} Nf8 {[%emt 0:01:26]} 29. f6 {[%emt 0:00:53]} Bxf6 {[%emt 0:01:13]} 30. Rxf8+ {[%emt 0:03:57]} Rxf8 {[%emt 0:00:06]} 31. Bxf8 {[%emt 0:00:06]} Bxe5 {[%emt 0:00:04]} 32. b3 {[%emt 0:00:39]} Kd7 {[%emt 0:01:05]} 33. Bxc5 {[%emt 0:00:14]} Ke6 {[%emt 0:00:24]} 34. Nf3 {[%emt 0:00:21]} Bf6 {[%emt 0:00:29]} 35. Ke2 {[%emt 0:00:28]} Kd5 {[%emt 0:00:36]} 36. Bf2 {[%emt 0:00:08]} Ke4 {[%emt 0:00:03]} 37. Bxh4 {[%emt 0:00:18]} Bxh4 {[%emt 0:00:05]} 38. Nxh4 {[%emt 0:00:05] Black got outplayed after the opening.   Weighted Error Value: White=0.07 (flawless) /Black=0.42.  Mistake:       	---       	Black=4      OK:         	White=10    	Black=6      Best:        	White=1     	Black=2} 1-0